bitfinex-derivatives/quotes_SOLF0:USTF0_20250509
["timestamp","ask_amount","ask_price","bid_price","bid_amount"]
[1746810718891,5.8519,170.88,170.84,5.8529]
[1746810719490,5.8514,170.89,170.85,5.8526]
[1746810719891,9.67971688,170.92,170.81,63.5029]
[1746810720190,9.67971688,170.92,170.86,5.8521]
[1746810720491,5.8516,170.89,170.85,5.8526]
[1746810720697,30.04,170.94,170.81,63.5029]
[1746810721087,5.8504,170.92,170.88,5.8517]
[1746810721288,100.0,171.0,170.88,59.82]
[1746810721491,5.848,170.99,170.93,5.8497]
[1746810721789,5.848,170.99,170.89,5.7653]
[1746810722193,5.848,170.99,170.94,5.8494]
[1746810722393,5.8484,170.98,170.89,5.7653]
[1746810722595,130.22,171.0,170.89,5.7653]
[1746810722788,130.22,171.0,170.92,5.8502]
[1746810722988,5.8486,170.98,170.89,5.7653]
[1746810723193,130.22,171.0,170.89,5.7653]
[1746810723393,130.22,171.0,170.94,5.8495]
[1746810723594,130.22,171.0,170.89,5.7653]
[1746810723895,130.22,171.0,170.94,5.8495]
[1746810724394,130.22,171.0,170.89,5.7653]
[1746810724793,5.8482,170.99,170.89,5.7653]
[1746810725193,5.8483,170.98,170.89,5.7653]
[1746810725492,130.22,171.0,170.93,5.8497]
[1746810725790,5.8483,170.98,170.89,5.7653]
[1746810725996,5.8483,170.98,170.93,5.8498]
[1746810726294,5.8483,170.98,170.89,5.7653]
[1746810726495,5.8483,170.98,170.94,5.8494]
[1746810726694,5.848,170.99,170.89,5.7653]
[1746810727395,136.0677,171.0,170.89,5.7653]
[1746810727596,130.22,171.0,170.9,1.17027501]
[1746810728493,5.8484,170.98,170.9,1.17027501]
[1746810728695,130.22,171.0,170.9,1.17027501]
[1746810728888,130.22,171.0,170.92,5.8503]
[1746810729090,5.8493,170.96,170.92,5.8503]
[1746810729289,29.62,170.96,170.9,1.17027501]
[1746810729488,5.8491,170.96,170.9,1.17027501]
[1746810729886,5.8491,170.96,170.92,5.8501]
[1746810730097,29.62,170.97,170.92,5.8501]
[1746810730397,5.8496,170.95,170.91,5.8504]
[1746810730587,5.8496,170.95,170.9,1.17027501]
[1746810730897,5.8497,170.94,170.91,5.8506]
[1746810731092,29.62,170.97,170.9,1.17027501]
[1746810731595,5.8507,170.91,170.9,1.17027501]
[1746810731792,61.68,170.91,170.81,1.9059]
[1746810731991,5.8519,170.88,170.84,5.8531]
[1746810732189,61.68,170.91,170.81,1.9059]
[1746810732696,5.8521,170.87,170.83,5.8531]
[1746810733100,61.68,170.91,170.81,1.9059]
[1746810733488,61.64,170.92,170.81,1.9059]
[1746810734098,5.8511,170.9,170.86,5.8522]
[1746810734298,61.64,170.92,170.81,1.9059]
[1746810734594,5.8513,170.9,170.84,5.853]
[1746810734799,61.64,170.92,170.81,1.9059]
[1746810735188,5.8514,170.89,170.86,5.8524]
[1746810735392,61.64,170.92,170.81,1.9059]
[1746810735798,61.64,170.92,170.86,5.8521]
[1746810736196,61.64,170.92,170.81,1.9059]
[1746810736393,61.64,170.92,170.87,5.8518]
[1746810736799,61.64,170.92,170.81,1.9059]
[1746810737098,5.851,170.9,170.81,1.9059]
[1746810737398,5.8513,170.9,170.86,5.8523]
[1746810737587,61.64,170.92,170.86,5.8523]
[1746810737897,5.8514,170.89,170.86,5.8523]
[1746810738098,61.64,170.92,170.81,1.9059]
[1746810738595,5.8519,170.88,170.81,1.9059]
[1746810739097,5.8514,170.89,170.81,1.9059]
[1746810739298,5.8514,170.89,170.85,5.8525]
[1746810739497,5.8517,170.88,170.85,5.8525]
[1746810739694,61.64,170.92,170.81,1.9059]
[1746810740096,5.8513,170.9,170.81,1.9059]
[1746810740601,5.8515,170.89,170.81,1.9059]
[1746810741201,5.8511,170.9,170.81,1.9059]
[1746810741401,61.64,170.92,170.81,1.9059]
[1746810741700,5.8509,170.91,170.81,1.9059]
[1746810741995,61.64,170.92,170.81,1.9059]
[1746810742195,61.64,170.92,170.88,5.8517]
[1746810742402,61.52,170.93,170.81,1.9059]
[1746810742700,61.52,170.93,170.84,5.8529]
[1746810742901,5.852,170.88,170.84,5.8529]
[1746810743101,61.52,170.93,170.84,5.8529]
[1746810743303,61.52,170.93,170.8,62.68]
[1746810743602,5.8521,170.87,170.8,62.68]
[1746810744303,5.8521,170.87,170.83,5.8531]
[1746810744706,5.8521,170.87,170.8,62.68]
[1746810744907,5.8524,170.86,170.83,5.8532]
[1746810745205,30.6,170.91,170.8,62.68]
[1746810745502,30.6,170.91,170.8,31.84]
[1746810745798,30.6,170.91,170.8,1.0]
[1746810746199,15.47002325,170.88,170.8,1.0]
[1746810746398,30.84,170.87,170.8,1.0]
[1746810746598,30.56,170.86,170.8,1.0]
[1746810747404,5.8541,170.82,170.8,1.0]
[1746810747904,5.8541,170.81,170.8,1.0]
[1746810749301,36.2741,170.81,170.8,1.0]
[1746810749602,30.42,170.81,170.8,1.0]
[1746810750004,61.24,170.84,170.8,1.0]
[1746810750206,5.853,170.85,170.8,1.0]
[1746810750504,5.853,170.85,170.81,5.8539]
[1746810750703,5.853,170.85,170.8,1.0]
[1746810751005,5.8525,170.86,170.82,5.8535]
[1746810751209,61.34,170.87,170.82,5.8535]
[1746810751501,5.8526,170.86,170.82,5.8535]
[1746810752304,5.8526,170.86,170.83,5.8534]
[1746810753404,5.8526,170.86,170.82,5.8536]
[1746810753805,5.8526,170.86,170.8,1.0]
[1746810754305,517.459,170.95,170.8,1.0]
[1746810754604,77.65290526,170.94,170.8,1.0]
[1746810754805,5.8519,170.88,170.84,5.8528]
[1746810755007,5.8519,170.88,170.8,1.0]
[1746810755503,36.7116,170.89,170.8,1.0]
[1746810756108,36.7116,170.89,170.85,5.8525]
[1746810756302,5.8517,170.88,170.85,5.8525]
[1746810756502,30.86,170.89,170.85,5.8525]
[1746810757010,36.7116,170.89,170.85,5.8525]
[1746810757209,30.86,170.93,170.81,30.42]
[1746810757400,61.28,170.94,170.81,30.42]
[1746810757606,5.8506,170.92,170.88,5.8515]
[1746810757805,5.8506,170.92,170.81,30.42]
[1746810758106,5.8506,170.92,170.81,31.59089163]
[1746810758809,5.8506,170.92,170.89,5.8512]
[1746810759810,5.8502,170.93,170.89,5.8512]
[1746810760211,5.8504,170.92,170.89,5.8512]
[1746810760408,5.8504,170.92,170.88,5.8516]
[1746810760611,61.22,170.94,170.81,31.59089163]
[1746810760906,5.8514,170.89,170.81,31.59089163]
[1746810761508,5.8514,170.89,170.85,5.8525]
[1746810761707,61.22,170.94,170.81,31.59089163]
[1746810762013,61.22,170.94,170.84,5.853]
[1746810762410,5.8523,170.87,170.84,5.853]
[1746810763908,61.22,170.94,170.81,31.59089163]
[1746810764107,15.47002325,170.92,170.81,1.17089163]
[1746810764311,15.47002325,170.88,170.81,1.17089163]
[1746810764514,5.8538,170.82,170.81,1.17089163]
[1746810764811,60.46,170.87,170.8,1.0]
[1746810765115,5.853,170.85,170.81,5.8538]
[1746810765314,5.853,170.85,170.8,1.0]
[1746810765615,5.853,170.85,170.81,5.8539]
[1746810765813,5.853,170.85,170.8,1.0]
[1746810766113,5.8532,170.84,170.8,1.0]
[1746810767016,5.8532,170.84,170.81,5.854]
[1746810767218,60.44,170.86,170.8,1.0]
[1746810767815,66.2925,170.86,170.8,1.0]
[1746810768014,36.1325,170.86,170.82,5.8535]
[1746810768410,27.17092325,170.92,170.8,1.0]
[1746810768411,60.34,170.9,170.8,1.0]
[1746810768711,60.34,170.9,170.85,5.8527]
[1746810769212,5.8516,170.89,170.85,5.8527]
[1746810769415,5.8516,170.89,170.86,5.8524]
[1746810769916,60.34,170.9,170.81,2.0036]
[1746810770517,60.34,170.9,170.8,1.0]
[1746810770518,15.47002325,170.88,170.8,1.0]
[1746810771016,60.22,170.87,170.8,6.8545]
[1746810771219,60.22,170.87,170.8,1.0]
[1746810771617,5.8538,170.83,170.8,1.0]
[1746810771917,60.22,170.87,170.8,1.0]
[1746810772119,5.8541,170.81,170.8,1.0]
[1746810772319,66.0141,170.81,170.8,1.0]
[1746810777512,36.1541,170.81,170.8,1.0]
[1746810779822,30.3,170.81,170.8,1.0]
[1746810780221,11.7032,170.89,170.8,1.0]
[1746810780421,5.854,170.82,170.8,1.0]
[1746810781325,59.9,170.83,170.8,1.0]
[1746810781831,65.7537,170.83,170.8,1.0]
[1746810782120,5.8537,170.83,170.8,1.0]
[1746810783623,5.8537,170.83,170.8,6.8545]
[1746810784020,5.8538,170.82,170.8,1.0]
[1746810784623,5.8536,170.83,170.8,1.0]
[1746810784825,5.8536,170.83,170.8,6.8544]
[1746810785424,5.8536,170.83,170.8,1.0]
[1746810785828,5.8538,170.82,170.8,1.0]
[1746810786325,30.3,170.84,170.8,6.8545]
[1746810786525,5.8536,170.83,170.8,6.8545]
[1746810786826,5.8536,170.83,170.8,1.0]
[1746810787024,30.3,170.84,170.8,1.0]
[1746810787228,5.8541,170.81,170.8,1.0]
[1746810787919,5.8551,170.78,170.77,1.0]
[1746810788120,59.72,170.78,170.7,5.4892]
[1746810788327,75.19002325,170.78,170.65,30.3]
[1746810788522,75.19002325,170.78,170.68,5.8585]
[1746810789026,75.19002325,170.78,170.65,35.8641]
[1746810790026,5.8579,170.7,170.66,5.8591]
[1746810790722,59.68,170.73,170.66,5.8591]
[1746810790929,59.68,170.73,170.65,5.5641]
[1746810791229,5.8585,170.69,170.65,5.5641]
[1746810791520,59.68,170.73,170.65,5.5641]
[1746810791728,5.8583,170.69,170.65,5.5641]
[1746810792031,59.68,170.73,170.65,3.7338]
[1746810792225,5.8591,170.67,170.61,30.3]
[1746810792416,59.68,170.73,170.61,30.3]
[1746810792417,59.68,170.73,170.61,34.1182]
[1746810792828,5.8585,170.69,170.64,5.8597]
[1746810793126,5.8585,170.69,170.61,34.1182]
[1746810793429,29.36,170.7,170.61,34.1182]
[1746810794429,35.218,170.7,170.67,5.8588]
[1746810795428,29.36,170.7,170.68,5.8586]
[1746810796122,35.2179,170.7,170.68,5.8586]
[1746810796329,29.36,170.7,170.68,5.8586]
[1746810797530,35.218,170.7,170.67,5.8588]
[1746810797729,29.36,170.7,170.61,34.1182]
[1746810798729,5.8595,170.66,170.63,5.8601]
[1746810798925,29.36,170.7,170.61,34.1182]
[1746810799328,506.1,170.75,170.61,34.1182]
[1746810799537,29.38,170.74,170.61,34.1182]
[1746810799831,35.2366,170.74,170.7,5.8576]
[1746810800230,29.38,170.74,170.66,29.2]
[1746810800431,5.8571,170.73,170.69,5.858]
[1746810800829,29.38,170.74,170.66,29.2]
[1746810801031,5.8574,170.72,170.69,5.8582]
[1746810801332,29.38,170.74,170.66,29.2]
[1746810802033,58.5,170.77,170.66,58.58]
[1746810802236,5.8558,170.77,170.67,1.9902]
[1746810803636,35.2352,170.78,170.67,1.9902]
[1746810804136,35.2352,170.78,170.75,5.8559]
[1746810804338,5.8556,170.77,170.75,5.8559]
[1746810804634,29.38,170.78,170.72,5.857]
[1746810805030,5.8564,170.75,170.67,1.9902]
[1746810805839,5.8564,170.75,170.72,5.8569]
[1746810806141,29.38,170.78,170.67,1.9902]
[1746810806335,29.38,170.78,170.67,3.16205211]
[1746810806742,29.38,170.78,170.68,1.17178345]
[1746810806943,29.38,170.78,170.74,5.8563]
[1746810807336,29.38,170.78,170.69,3.8925]
[1746810807532,29.38,170.78,170.75,5.8561]
[1746810807835,35.2353,170.78,170.69,3.8925]
[1746810808239,29.38,170.78,170.69,3.8925]
[1746810808439,29.38,170.78,170.69,5.0642148]
[1746810810443,5.8559,170.76,170.73,5.8566]
[1746810810743,29.38,170.78,170.73,5.8566]
[1746810811045,5.8558,170.77,170.73,5.8566]
[1746810811342,5.8564,170.75,170.72,5.8572]
[1746810811642,5.8564,170.75,170.69,5.0642148]
[1746810811843,28.96,170.76,170.7,5.8578]
[1746810812046,28.96,170.76,170.69,5.0642148]
[1746810812545,29.38,170.78,170.69,5.0642148]
[1746810812747,28.94,170.76,170.69,5.0642148]
[1746810812949,28.94,170.76,170.69,1.1717148]
[1746810813647,5.8575,170.72,170.69,1.1717148]
[1746810814149,5.8578,170.71,170.69,1.1717148]
[1746810814945,5.8579,170.7,170.69,1.1717148]
[1746810815346,5.8579,170.7,170.66,5.8592]
[1746810816150,5.8582,170.69,170.66,5.8592]
[1746810816852,5.8584,170.69,170.65,5.8593]
[1746810817254,5.8584,170.69,170.63,5.8272]
[1746810817555,5.8584,170.69,170.65,5.8596]
[1746810817849,28.88,170.71,170.63,5.8272]
[1746810818350,29.38,170.73,170.63,5.8272]
[1746810818745,5.8574,170.72,170.69,5.8581]
[1746810818942,29.38,170.73,170.63,5.8272]
[1746810819148,58.26,170.77,170.63,5.8272]
[1746810819441,58.26,170.77,170.63,6.99932682]
[1746810819842,5.8571,170.73,170.69,5.858]
[1746810820245,5.8571,170.73,170.63,6.99932682]
[1746810820451,5.8571,170.73,170.7,5.8577]
[1746810821656,5.8572,170.72,170.69,5.8581]
[1746810821853,58.26,170.77,170.63,6.99932682]
[1746810822154,58.26,170.77,170.64,28.88]
[1746810823155,5.8569,170.73,170.7,5.8577]
[1746810823353,58.26,170.77,170.64,28.88]
[1746810823754,5.8567,170.74,170.71,5.8575]
[1746810824055,58.26,170.77,170.64,28.88]
[1746810825051,58.26,170.77,170.69,5.8582]
[1746810825256,58.26,170.77,170.64,28.88]
[1746810825555,5.8565,170.75,170.64,28.88]
[1746810825757,58.26,170.77,170.64,28.88]
[1746810826055,5.8567,170.74,170.7,5.8577]
[1746810826656,5.8567,170.74,170.64,28.88]
[1746810826856,5.8572,170.73,170.69,5.8581]
[1746810828559,28.88,170.75,170.64,28.88]
[1746810829058,5.8572,170.72,170.68,5.8583]
[1746810829254,28.88,170.75,170.64,28.88]
[1746810829659,5.8581,170.7,170.66,5.859]
[1746810831057,5.8582,170.69,170.66,5.859]
[1746810831259,28.88,170.73,170.65,5.8595]
[1746810831557,28.88,170.72,170.65,5.8595]
[1746810831757,5.8585,170.69,170.65,5.8595]
[1746810832154,5.8599,170.65,170.63,1.17212682]
[1746810833467,11.7119,170.76,170.63,1.17212682]
[1746810833665,57.76,170.75,170.63,1.17212682]
[1746810833871,57.76,170.75,170.66,5.8593]
[1746810834166,57.76,170.75,170.63,1.17212682]
[1746810834367,57.76,170.75,170.65,5.8596]
[1746810834865,5.8584,170.69,170.65,5.8596]
[1746810835468,5.8584,170.69,170.66,5.8592]
[1746810836163,63.618,170.7,170.63,1.17212682]
[1746810836466,57.76,170.7,170.67,5.8589]
[1746810836773,63.6181,170.7,170.66,5.859]
[1746810837069,63.6181,170.7,170.63,1.17212682]
[1746810837365,28.88,170.7,170.63,1.17212682]
[1746810837569,28.88,170.7,170.64,3.7796]
[1746810838072,28.88,170.7,170.68,5.8584]
[1746810839872,28.88,170.7,170.69,5.8582]
[1746810840073,28.88,170.7,170.64,3.7796]
[1746810840471,28.88,170.7,170.68,5.8584]
[1746810841074,34.738,170.7,170.68,5.8584]
[1746810841271,28.88,170.7,170.68,5.8584]
[1746810841472,28.88,170.7,170.69,5.8582]
[1746810841672,34.7371,170.73,170.64,3.7796]
[1746810841863,5.8571,170.73,170.64,5.602]
[1746810842273,5.8571,170.73,170.7,5.8577]
[1746810842474,5.8572,170.72,170.7,5.8577]
[1746810843169,5.8579,170.71,170.64,5.602]
[1746810843673,28.88,170.74,170.64,5.602]
[1746810843674,5.8581,170.7,170.67,5.8588]
[1746810844273,28.88,170.74,170.64,3.7796]
[1746810844474,28.88,170.74,170.66,1.0]
[1746810844873,5.8574,170.72,170.69,5.8582]
[1746810845075,57.74,170.74,170.66,1.0]
[1746810845270,57.74,170.74,170.72,5.8571]
[1746810845777,63.5965,170.74,170.72,5.8571]
[1746810845979,63.5965,170.74,170.71,5.8574]
[1746810847280,5.8563,170.75,170.72,5.8571]
[1746810847475,57.74,170.75,170.66,1.0]
[1746810848079,5.8567,170.74,170.66,1.0]
[1746810848581,5.8567,170.74,170.71,5.8575]
[1746810849479,57.74,170.75,170.72,5.8572]
[1746810849480,63.5963,170.75,170.72,5.8572]
[1746810849777,5.8565,170.74,170.71,5.8575]
[1746810850879,57.74,170.75,170.66,1.0]
[1746810851379,5.8574,170.72,170.69,5.858]
[1746810852084,57.74,170.75,170.66,1.0]
[1746810852279,15.52858828,170.72,170.66,1.0]
[1746810852476,15.52898104,170.71,170.66,1.0]
[1746810852779,5.8588,170.68,170.66,1.0]
[1746810852975,28.86,170.69,170.66,1.0]
[1746810853369,28.84,170.71,170.66,1.0]
[1746810853677,38.54301455,170.71,170.66,1.0]
[1746810854278,9.70466142,170.7,170.66,1.0]
[1746810855679,9.70466142,170.67,170.63,1.17212682]
[1746810855880,57.7,170.66,170.63,1.17212682]
[1746810856079,57.7,170.66,170.56,28.84]
[1746810856478,57.7,170.66,170.59,5.8615]
[1746810857084,5.8605,170.63,170.6,5.8612]
[1746810858385,15.53414074,170.68,170.56,28.84]
[1746810858582,57.72,170.67,170.56,28.84]
[1746810859191,28.86,170.67,170.56,30.01260787]
[1746810859386,57.72,170.71,170.57,1.17253913]
[1746810859587,57.72,170.71,170.67,5.8587]
[1746810859588,5.8582,170.69,170.67,5.8587]
[1746810859886,28.86,170.71,170.62,57.72]
[1746810860086,28.86,170.71,170.63,1.9373]
[1746810860286,5.8584,170.69,170.66,5.8592]
[1746810860487,28.86,170.71,170.63,1.9373]
[1746810860988,28.86,170.71,170.63,7.7975]
[1746810861886,28.86,170.71,170.64,5.8599]
[1746810862885,5.8588,170.68,170.65,5.8595]
[1746810863287,5.8588,170.68,170.63,1.9373]
[1746810864189,5.8589,170.67,170.63,1.9373]
[1746810864488,28.86,170.71,170.63,1.9373]
[1746810864688,5.8602,170.64,170.58,1.944]
[1746810864889,57.7,170.65,170.58,1.944]
[1746810865287,57.7,170.65,170.57,1.17253913]
[1746810865785,5.8604,170.63,170.57,1.17253913]
[1746810865991,57.7,170.65,170.57,1.17253913]
[1746810866488,57.7,170.65,170.57,7.03463913]
[1746810866989,5.8616,170.6,170.57,1.17253913]
[1746810867191,57.7,170.65,170.57,1.17253913]
[1746810867690,15.53414074,170.63,170.57,1.17253913]
[1746810867891,15.53414074,170.63,170.52,28.86]
[1746810868085,5.8622,170.58,170.54,5.8632]
[1746810868282,15.53414074,170.67,170.52,28.86]
[1746810868487,28.86,170.63,170.52,30.03288294]
[1746810868694,5.8609,170.62,170.58,5.862]
[1746810868898,44.39414074,170.63,170.52,30.03288294]
[1746810869292,5.8614,170.6,170.56,5.8626]
[1746810871699,5.8611,170.61,170.57,5.8622]
[1746810872000,44.39414074,170.63,170.52,30.03288294]
[1746810872193,5.8614,170.6,170.56,5.8625]
[1746810872395,44.39414074,170.63,170.52,30.03288294]
[1746810872597,28.86,170.63,170.52,30.03288294]
[1746810873302,5.8611,170.61,170.58,5.8618]
[1746810873600,28.86,170.63,170.55,28.84]
[1746810873793,5.8608,170.62,170.58,5.8618]
[1746810873991,5.8608,170.62,170.56,1.8898]
[1746810874196,28.86,170.67,170.56,1.8898]
[1746810874388,57.7,170.68,170.57,32.7022]
[1746810874597,5.8593,170.66,170.57,32.7022]
[1746810875199,5.8593,170.66,170.62,5.8604]
[1746810875601,5.8596,170.65,170.62,5.8604]
[1746810875800,57.7,170.68,170.63,5.8603]
[1746810876700,5.8595,170.66,170.63,5.8603]
[1746810877099,57.7,170.68,170.62,5.8605]
[1746810877402,521.85414074,170.73,170.62,5.8605]
[1746810877702,57.7,170.72,170.63,5.8601]
[1746810877900,58.74414034,170.72,170.63,5.8601]
[1746810878102,5.8592,170.67,170.63,5.8601]
[1746810878402,57.7,170.72,170.62,5.8606]
[1746810878908,5.8591,170.67,170.63,5.8602]
[1746810879302,57.7,170.72,170.57,32.7022]
[1746810879494,5.8588,170.68,170.64,5.8597]
[1746810879803,57.7,170.72,170.57,32.7022]
[1746810880200,5.8591,170.67,170.63,5.8602]
[1746810880699,57.7,170.72,170.63,5.8602]
[1746810881004,5.8593,170.66,170.63,5.8602]
[1746810882304,5.8593,170.66,170.62,5.8605]
[1746810882505,28.82,170.67,170.57,32.7022]
[1746810882704,57.66,170.67,170.57,61.5422]
[1746810883106,5.8603,170.63,170.6,5.8611]
[1746810883701,57.66,170.67,170.61,5.861]
[1746810883907,57.66,170.67,170.57,61.5422]
[1746810884217,63.5191,170.67,170.57,61.5422]
[1746810884505,57.66,170.67,170.57,61.5422]
[1746810884702,28.82,170.67,170.57,61.5422]
[1746810884903,28.82,170.67,170.65,5.8594]
[1746810886204,28.82,170.67,170.64,5.8599]
[1746810886507,34.679,170.67,170.64,5.8599]
[1746810887409,28.82,170.67,170.57,61.5422]
[1746810887808,28.82,170.67,170.65,5.8595]
[1746810888209,34.6789,170.67,170.57,61.5422]
[1746810888909,34.6789,170.67,170.64,5.8596]
[1746810889309,28.82,170.67,170.57,61.5422]
[1746810889619,28.82,170.67,170.66,5.8593]
[1746810889908,28.82,170.67,170.65,5.8595]
[1746810890810,9.70190449,170.66,170.57,3.8422]
[1746810891003,28.82,170.65,170.57,3.8422]
[1746810891309,5.8608,170.62,170.59,5.8614]
[1746810891805,28.82,170.65,170.57,3.8422]
[1746810892000,5.8608,170.62,170.57,3.8422]
[1746810892516,5.8608,170.62,170.59,5.8615]
[1746810892811,5.861,170.61,170.59,5.8615]
[1746810893007,28.82,170.65,170.57,1.9004]
[1746810893414,9.70190449,170.63,170.57,1.9004]
[1746810893704,28.82,170.62,170.56,7.7523]
[1746810893915,44.35860781,170.62,170.52,1.17288294]
[1746810895608,15.53860781,170.62,170.52,1.17288294]
[1746810895812,5.8619,170.59,170.52,1.17288294]
[1746810896008,57.62,170.61,170.52,1.17288294]
[1746810896411,5.862,170.58,170.54,5.8631]
[1746810896608,57.62,170.61,170.52,1.17288294]
[1746810897103,5.8617,170.59,170.52,1.17288294]
[1746810897301,57.62,170.61,170.53,1.8646]
[1746810897712,5.8616,170.6,170.56,5.8626]
[1746810898012,57.62,170.61,170.56,5.8626]
[1746810898313,5.8617,170.59,170.55,5.8629]
[1746810899110,5.8615,170.6,170.56,5.8625]
[1746810899509,506.5,170.63,170.53,3.8203]
[1746810899808,5.8611,170.61,170.58,5.8618]
[1746810900212,28.82,170.62,170.53,3.8203]
[1746810900615,506.6,170.71,170.53,19.35890781]
[1746810900908,15.53860781,170.69,170.54,1.17274539]
[1746810901112,15.53860781,170.69,170.54,29.99274539]
[1746810901307,1.04437675,170.68,170.54,29.99274539]
[1746810901502,5.8616,170.6,170.54,29.99274539]
[1746810901907,5.8616,170.6,170.57,5.8622]
[1746810902201,5.8611,170.61,170.54,29.99274539]
[1746810902401,57.62,170.63,170.54,29.99274539]
[1746810902914,5.8608,170.62,170.54,29.99274539]
[1746810903213,57.62,170.63,170.54,29.99274539]
[1746810903413,63.4804,170.63,170.54,29.99274539]
[1746810903614,57.62,170.63,170.54,29.99274539]
[1746810904012,57.62,170.63,170.59,5.8615]
[1746810904209,11.7164,170.7,170.56,28.8]
[1746810904513,5.8605,170.63,170.6,5.8611]
[1746810904715,28.82,170.69,170.56,28.8]
[1746810904912,28.8,170.68,170.57,1.8423]
[1746810905111,28.8,170.68,170.62,5.8604]
[1746810905415,28.8,170.68,170.54,29.99274539]
[1746810905416,15.53860781,170.66,170.54,1.17274539]
[1746810905715,15.53860781,170.66,170.56,5.8627]
[1746810905911,15.53860781,170.66,170.54,1.17274539]
[1746810906107,28.8,170.68,170.55,3.7736]
[1746810906310,28.8,170.68,170.59,5.8614]
[1746810906712,5.8606,170.63,170.6,1.0]
[1746810907017,28.8,170.68,170.6,1.0]
[1746810907816,5.8609,170.62,170.6,1.0]
[1746810908417,5.861,170.61,170.6,1.0]
[1746810913320,28.78,170.63,170.6,1.0]
[1746810915021,5.861,170.61,170.6,1.0]
[1746810915420,28.78,170.63,170.6,1.0]
[1746810916715,57.54,170.66,170.6,1.0]
[1746810916911,28.76,170.66,170.6,1.0]
[1746810917723,28.76,170.66,170.63,5.8601]
[1746810918022,28.76,170.66,170.6,1.0]
[1746810918425,5.8598,170.65,170.62,5.8605]
[1746810918815,5.8602,170.64,170.61,5.8608]
[1746810919226,5.8602,170.64,170.6,1.0]
[1746810919923,28.76,170.66,170.6,1.0]
[1746810920421,28.76,170.66,170.63,5.8602]
[1746810920621,28.76,170.7,170.6,1.0]
[1746810920817,196.0,170.77,170.61,1.8983]
[1746810921020,196.0,170.77,170.69,5.8579]
[1746810921021,5.8571,170.73,170.69,5.8579]
[1746810921216,110.25572953,170.76,170.66,28.76]
[1746810921426,5.8567,170.74,170.7,5.8576]
[1746810921631,110.25572953,170.76,170.66,28.76]
[1746810921928,28.76,170.76,170.66,28.76]
[1746810922530,5.8574,170.72,170.68,5.8583]
[1746810922827,5.8574,170.72,170.66,28.76]
[1746810923517,28.76,170.76,170.66,28.76]
[1746810923829,28.76,170.76,170.72,5.8571]
[1746810924029,28.76,170.76,170.66,28.76]
[1746810924529,57.5,170.77,170.67,28.74]
[1746810924731,28.76,170.77,170.67,28.74]
[1746810924917,28.76,170.77,170.67,30.655]
[1746810925324,28.76,170.81,170.67,30.655]
[1746810925732,28.74,170.8,170.67,30.655]
[1746810925930,5.8557,170.77,170.67,30.655]
[1746810926230,28.74,170.8,170.67,30.655]
[1746810926830,5.8566,170.74,170.71,5.8573]
[1746810927327,28.74,170.8,170.67,30.655]
[1746810927830,5.8563,170.75,170.72,5.8571]